[Event "Titled Tuesday Blitz July 4 Late 2023"]
[White "Rustemov, Alexander"]
[Black "Fisher_TheGalactic"]
[WhiteFideId "4119002"]
[WhiteElo "2807"]
[BlackElo "2671"]
[Result "0-1"]
[Round "11"]
[TimeControl "180+2"]
[Date "2023.07.04"]
[WhiteClock "0:00:00"]
[BlackClock "0:00:05"]
[Board "17"]

1. d4 {[%clk 0:02:32]}  b6 {[%clk 0:03:00]} 2. e4 {[%clk 0:02:31]}  Bb7 {[%clk 0:03:01]} 3. f3 {[%clk 0:02:30]}  e6 {[%clk 0:03:01]} 4. Be3 {[%clk 0:02:27]}  d5 {[%clk 0:03:02]} 5. e5 {[%clk 0:02:24]}  c5 {[%clk 0:03:02]} 6. c3 {[%clk 0:02:24]}  Nc6 {[%clk 0:03:03]} 7. a3 {[%clk 0:02:22]}  Nge7 {[%clk 0:03:03]} 8. f4 {[%clk 0:02:21]}  Nf5 {[%clk 0:02:56]} 9. Bf2 {[%clk 0:02:20]}  Be7 {[%clk 0:02:55]} 10. Nf3 {[%clk 0:02:20]}  Qd7 {[%clk 0:02:53]} 11. Bd3 {[%clk 0:02:21]}  c4 {[%clk 0:02:49]} 12. Bc2 {[%clk 0:02:18]}  h5 {[%clk 0:02:44]} 13. Nbd2 {[%clk 0:02:18]}  g6 {[%clk 0:02:44]} 14. g3 {[%clk 0:02:10]}  O-O-O {[%clk 0:02:44]} 15. Nf1 {[%clk 0:02:09]}  Kb8 {[%clk 0:02:41]} 16. Ne3 {[%clk 0:02:09]}  Rde8 {[%clk 0:02:40]} 17. Qe2 {[%clk 0:02:08]}  Nd8 {[%clk 0:02:40]} 18. O-O {[%clk 0:02:07]}  Bc6 {[%clk 0:02:40]} 19. a4 {[%clk 0:02:03]}  a6 {[%clk 0:02:38]} 20. Kg2 {[%clk 0:02:03]}  Nb7 {[%clk 0:02:34]} 21. h3 {[%clk 0:02:02]}  Na5 {[%clk 0:02:32]} 22. g4 {[%clk 0:01:58]}  hxg4 {[%clk 0:02:30]} 23. hxg4 {[%clk 0:01:59]}  Nxe3+ {[%clk 0:02:31]} 24. Bxe3 {[%clk 0:01:59]}  Ka7 {[%clk 0:02:28]} 25. Ng5 {[%clk 0:01:53]}  Bxg5 {[%clk 0:02:20]} 26. fxg5 {[%clk 0:01:51]}  Nb3 {[%clk 0:02:18]} 27. Bxb3 {[%clk 0:01:48]}  cxb3 {[%clk 0:02:19]} 28. a5 {[%clk 0:01:49]}  Bb5 {[%clk 0:02:16]} 29. axb6+ {[%clk 0:01:44]}  Kxb6 {[%clk 0:02:17]} 30. Qd1 {[%clk 0:01:27]}  Bxf1+ {[%clk 0:02:17]} 31. Qxf1 {[%clk 0:01:28]}  Qb5 {[%clk 0:02:15]} 32. Qd1 {[%clk 0:01:14]}  a5 {[%clk 0:02:05]} 33. c4 {[%clk 0:01:13]}  Qxc4 {[%clk 0:02:00]} 34. Rc1 {[%clk 0:01:12]}  Qb4 {[%clk 0:01:55]} 35. Bd2 {[%clk 0:01:08]}  Qa4 {[%clk 0:01:36]} 36. Rc3 {[%clk 0:01:06]}  Ka6 {[%clk 0:01:13]} 37. Qe2+ {[%clk 0:00:52]}  Kb6 {[%clk 0:00:55]} 38. Qd3 {[%clk 0:00:46]}  Ka7 {[%clk 0:00:31]} 39. Rc5 {[%clk 0:00:45]}  Kb6 {[%clk 0:00:20]} 40. Bxa5+ {[%clk 0:00:43]}  Qxa5 {[%clk 0:00:18]} 41. Qxb3+ {[%clk 0:00:41]}  Ka6 {[%clk 0:00:16]} 42. Rxa5+ {[%clk 0:00:26]}  Kxa5 {[%clk 0:00:17]} 43. Kg3 {[%clk 0:00:22]}  Rb8 {[%clk 0:00:15]} 44. Qa3+ {[%clk 0:00:21]}  Kb5 {[%clk 0:00:14]} 45. Qe7 {[%clk 0:00:20]}  Rhf8 {[%clk 0:00:13]} 46. Kf4 {[%clk 0:00:20]}  Kc4 {[%clk 0:00:08]} 47. Qc5+ {[%clk 0:00:20]}  Kb3 {[%clk 0:00:08]} 48. Qc3+ {[%clk 0:00:20]}  Ka2 {[%clk 0:00:09]} 49. b4 {[%clk 0:00:19]}  Rfc8 {[%clk 0:00:09]} 50. Qd2+ {[%clk 0:00:18]}  Kb3 {[%clk 0:00:08]} 51. Qf2 {[%clk 0:00:17]}  Rxb4 {[%clk 0:00:08]} 52. Kg3 {[%clk 0:00:17]}  Rc3+ {[%clk 0:00:08]} 53. Kh4 {[%clk 0:00:17]}  Rc7 {[%clk 0:00:05]} 54. Qf6 {[%clk 0:00:09]}  Rbc4 {[%clk 0:00:05]} 55. Qd8 {[%clk 0:00:09]}  Kc3 {[%clk 0:00:04]} 56. Kg3 {[%clk 0:00:08]}  Kxd4 {[%clk 0:00:05]} 57. Kh4 {[%clk 0:00:09]}  Kc3 {[%clk 0:00:05]} 58. Qa8 {[%clk 0:00:07]}  d4 {[%clk 0:00:05]} 59. Qa3+ {[%clk 0:00:07]}  Kd2 {[%clk 0:00:05]} 60. Qb2+ {[%clk 0:00:07]}  Ke3 {[%clk 0:00:06]} 61. Kg3 {[%clk 0:00:07]}  Rc3 {[%clk 0:00:04]} 62. Qf2+ {[%clk 0:00:05]}  Ke4+ {[%clk 0:00:04]} 63. Kh4 {[%clk 0:00:06]}  d3 {[%clk 0:00:03]} 64. Qe1+ {[%clk 0:00:06]}  Kd4 {[%clk 0:00:04]} 65. Qf2+ {[%clk 0:00:06]}  Kc4 {[%clk 0:00:04]} 66. Qf4+ {[%clk 0:00:06]}  Kb3 {[%clk 0:00:05]} 67. Qd4 {[%clk 0:00:06]}  Kc2 {[%clk 0:00:05]} 68. Qe4 {[%clk 0:00:06]}  R7c4 {[%clk 0:00:04]} 69. Qg2+ {[%clk 0:00:02]}  d2 {[%clk 0:00:04]} 70. Qe2 {[%clk 0:00:02]}  Kc1 {[%clk 0:00:04]} 71. Qf2 {[%clk 0:00:00]}  d1=Q {[%clk 0:00:05]} 0-1


[Site "https://www.chess.com"]

[Event "Titled Tuesday Blitz July 4 Late 2023"]
[White "Mattheii"]
[Black "Hambleton, Aman"]
[BlackFideId "2606577"]
[WhiteElo "2560"]
[BlackElo "2793"]
[Result "0-1"]
[Round "11"]
[TimeControl "180+2"]
[Date "2023.07.04"]
[WhiteClock "0:00:16"]
[BlackClock "0:00:18"]
[Board "19"]

1. d4 {[%clk 0:03:00]}  Nf6 {[%clk 0:02:59]} 2. c4 {[%clk 0:03:01]}  e6 {[%clk 0:02:58]} 3. Nc3 {[%clk 0:03:01]}  Bb4 {[%clk 0:02:59]} 4. Qc2 {[%clk 0:02:52]}  c5 {[%clk 0:02:58]} 5. dxc5 {[%clk 0:02:51]}  Qc7 {[%clk 0:02:58]} 6. Nf3 {[%clk 0:02:51]}  Bxc5 {[%clk 0:02:54]} 7. Bg5 {[%clk 0:02:48]}  Be7 {[%clk 0:02:53]} 8. e3 {[%clk 0:02:47]}  a6 {[%clk 0:02:53]} 9. Be2 {[%clk 0:02:42]}  d6 {[%clk 0:02:49]} 10. O-O {[%clk 0:02:42]}  O-O {[%clk 0:02:39]} 11. Rfd1 {[%clk 0:02:42]}  b6 {[%clk 0:02:36]} 12. Rac1 {[%clk 0:02:42]}  Bb7 {[%clk 0:02:36]} 13. b4 {[%clk 0:02:32]}  Nbd7 {[%clk 0:02:32]} 14. a3 {[%clk 0:02:28]}  Rac8 {[%clk 0:02:26]} 15. Qb3 {[%clk 0:02:16]}  Qb8 {[%clk 0:02:11]} 16. h3 {[%clk 0:02:08]}  h6 {[%clk 0:01:39]} 17. Bf4 {[%clk 0:02:04]}  e5 {[%clk 0:01:40]} 18. Bh2 {[%clk 0:02:01]}  Qa8 {[%clk 0:01:30]} 19. Ne1 {[%clk 0:01:33]}  Rc7 {[%clk 0:01:26]} 20. f3 {[%clk 0:01:30]}  Rfc8 {[%clk 0:00:17]} 21. e4 {[%clk 0:01:27]}  Nf8 {[%clk 0:00:10]} 22. Kh1 {[%clk 0:00:45]}  Bc6 {[%clk 0:00:06]} 23. Rc2 {[%clk 0:00:33]}  Bd7 {[%clk 0:00:05]} 24. Bg1 {[%clk 0:00:24]}  Qb7 {[%clk 0:00:04]} 25. Rdc1 {[%clk 0:00:25]}  Ng6 {[%clk 0:00:02]} 26. Nd5 {[%clk 0:00:25]}  Nxd5 {[%clk 0:00:02]} 27. cxd5 {[%clk 0:00:26]}  b5 {[%clk 0:00:02]} 28. Be3 {[%clk 0:00:21]}  Bg5 {[%clk 0:00:02]} 29. Rxc7 {[%clk 0:00:17]}  Rxc7 {[%clk 0:00:02]} 30. Rxc7 {[%clk 0:00:18]}  Qxc7 {[%clk 0:00:03]} 31. Bxg5 {[%clk 0:00:15]}  hxg5 {[%clk 0:00:04]} 32. Qc2 {[%clk 0:00:15]}  Qb6 {[%clk 0:00:03]} 33. Bf1 {[%clk 0:00:09]}  Nf4 {[%clk 0:00:02]} 34. Qd2 {[%clk 0:00:08]}  f6 {[%clk 0:00:02]} 35. Kh2 {[%clk 0:00:08]}  Kf7 {[%clk 0:00:02]} 36. g3 {[%clk 0:00:09]}  Ng6 {[%clk 0:00:03]} 37. Be2 {[%clk 0:00:08]}  Ke7 {[%clk 0:00:03]} 38. Bf1 {[%clk 0:00:08]}  Nh8 {[%clk 0:00:02]} 39. Nc2 {[%clk 0:00:08]}  Nf7 {[%clk 0:00:02]} 40. Qe3 {[%clk 0:00:08]}  Qc7 {[%clk 0:00:02]} 41. Qd2 {[%clk 0:00:08]}  Nh6 {[%clk 0:00:02]} 42. Ne3 {[%clk 0:00:08]}  g6 {[%clk 0:00:01]} 43. Bd3 {[%clk 0:00:08]}  Qb6 {[%clk 0:00:02]} 44. Kg2 {[%clk 0:00:08]}  Qd4 {[%clk 0:00:02]} 45. Qe2 {[%clk 0:00:07]}  Qc3 {[%clk 0:00:02]} 46. Qc2 {[%clk 0:00:06]}  Qxa3 {[%clk 0:00:02]} 47. Qd2 {[%clk 0:00:07]}  Nf7 {[%clk 0:00:02]} 48. Kh2 {[%clk 0:00:06]}  Nd8 {[%clk 0:00:02]} 49. Nc2 {[%clk 0:00:07]}  Qb2 {[%clk 0:00:02]} 50. Kg2 {[%clk 0:00:06]}  Nb7 {[%clk 0:00:02]} 51. h4 {[%clk 0:00:06]}  gxh4 {[%clk 0:00:02]} 52. gxh4 {[%clk 0:00:07]}  Nd8 {[%clk 0:00:03]} 53. Qh6 {[%clk 0:00:07]}  Qc3 {[%clk 0:00:02]} 54. Qe3 {[%clk 0:00:07]}  Nf7 {[%clk 0:00:02]} 55. Kf2 {[%clk 0:00:06]}  f5 {[%clk 0:00:02]} 56. Ke2 {[%clk 0:00:06]}  f4 {[%clk 0:00:02]} 57. Qb6 {[%clk 0:00:06]}  Qc8 {[%clk 0:00:01]} 58. Qg1 {[%clk 0:00:05]}  Kf6 {[%clk 0:00:01]} 59. Qg2 {[%clk 0:00:05]}  Qh8 {[%clk 0:00:02]} 60. Qh2 {[%clk 0:00:05]}  Ke7 {[%clk 0:00:02]} 61. Qg1 {[%clk 0:00:04]}  Qh5 {[%clk 0:00:03]} 62. Qh2 {[%clk 0:00:04]}  g5 {[%clk 0:00:03]} 63. Ne1 {[%clk 0:00:03]}  gxh4 {[%clk 0:00:03]} 64. Ng2 {[%clk 0:00:03]}  h3 {[%clk 0:00:03]} 65. Ne1 {[%clk 0:00:04]}  Qg5 {[%clk 0:00:04]} 66. Kf2 {[%clk 0:00:04]}  Qh4+ {[%clk 0:00:04]} 67. Ke2 {[%clk 0:00:04]}  Qg3 {[%clk 0:00:05]} 68. Qh1 {[%clk 0:00:02]}  h2 {[%clk 0:00:05]} 69. Kd2 {[%clk 0:00:02]}  Bh3 {[%clk 0:00:05]} 70. Bf1 {[%clk 0:00:02]}  Qg1 {[%clk 0:00:05]} 71. Bxh3 {[%clk 0:00:02]}  Qxh1 {[%clk 0:00:05]} 72. Bg2 {[%clk 0:00:03]}  Qxg2+ {[%clk 0:00:05]} 73. Nxg2 {[%clk 0:00:03]}  h1=Q {[%clk 0:00:06]} 74. Nh4 {[%clk 0:00:04]}  Qxh4 {[%clk 0:00:06]} 75. Kc3 {[%clk 0:00:05]}  Qg3 {[%clk 0:00:06]} 76. Kb2 {[%clk 0:00:05]}  Qxf3 {[%clk 0:00:06]} 77. Ka2 {[%clk 0:00:06]}  Kf6 {[%clk 0:00:07]} 78. Kb1 {[%clk 0:00:07]}  Kg5 {[%clk 0:00:08]} 79. Kb2 {[%clk 0:00:07]}  Kg4 {[%clk 0:00:08]} 80. Kc1 {[%clk 0:00:08]}  Qe3+ {[%clk 0:00:09]} 81. Kb2 {[%clk 0:00:09]}  Kf3 {[%clk 0:00:10]} 82. Kb1 {[%clk 0:00:10]}  Kxe4 {[%clk 0:00:11]} 83. Ka1 {[%clk 0:00:11]}  Kxd5 {[%clk 0:00:12]} 84. Ka2 {[%clk 0:00:12]}  Ke6 {[%clk 0:00:13]} 85. Kb1 {[%clk 0:00:12]}  d5 {[%clk 0:00:14]} 86. Ka1 {[%clk 0:00:13]}  d4 {[%clk 0:00:15]} 87. Ka2 {[%clk 0:00:14]}  e4 {[%clk 0:00:16]} 88. Kb1 {[%clk 0:00:15]}  Kd5 {[%clk 0:00:16]} 89. Ka2 {[%clk 0:00:16]}  Kc4 {[%clk 0:00:17]} 90. Kb2 {[%clk 0:00:16]}  Kxb4 {[%clk 0:00:18]} 0-1


[Site "https://www.chess.com"]

[Event "Titled Tuesday Blitz July 4 Late 2023"]
[White "Stribuk, Artiom"]
[Black "Stoleriu, George"]
[WhiteFideId "13515659"]
[BlackFideId "1227505"]
[WhiteElo "2790"]
[BlackElo "2673"]
[Result "1/2-1/2"]
[Round "11"]
[TimeControl "180+2"]
[Date "2023.07.04"]
[WhiteClock "0:00:05"]
[BlackClock "0:00:17"]
[Board "20"]

1. d4 {[%clk 0:02:20]}  e6 {[%clk 0:02:59]} 2. c4 {[%clk 0:02:20]}  Nf6 {[%clk 0:02:56]} 3. g3 {[%clk 0:02:20]}  Bb4+ {[%clk 0:02:55]} 4. Nd2 {[%clk 0:02:19]}  O-O {[%clk 0:02:54]} 5. Bg2 {[%clk 0:02:20]}  d6 {[%clk 0:02:53]} 6. Nf3 {[%clk 0:02:19]}  Qe7 {[%clk 0:02:53]} 7. O-O {[%clk 0:02:19]}  Nc6 {[%clk 0:02:47]} 8. Nb3 {[%clk 0:02:19]}  Na5 {[%clk 0:02:25]} 9. a3 {[%clk 0:01:52]}  Nxb3 {[%clk 0:02:24]} 10. Qxb3 {[%clk 0:01:53]}  Ba5 {[%clk 0:02:25]} 11. Qc2 {[%clk 0:01:53]}  c5 {[%clk 0:02:24]} 12. dxc5 {[%clk 0:01:51]}  dxc5 {[%clk 0:02:25]} 13. Bf4 {[%clk 0:01:52]}  Bc7 {[%clk 0:02:25]} 14. Rfd1 {[%clk 0:01:46]}  Bxf4 {[%clk 0:02:22]} 15. gxf4 {[%clk 0:01:47]}  Bd7 {[%clk 0:02:22]} 16. Ne5 {[%clk 0:01:47]}  Rab8 {[%clk 0:02:21]} 17. Rd2 {[%clk 0:01:46]}  Rfd8 {[%clk 0:02:02]} 18. Rad1 {[%clk 0:01:46]}  Be8 {[%clk 0:02:02]} 19. e3 {[%clk 0:01:47]}  Rxd2 {[%clk 0:02:02]} 20. Qxd2 {[%clk 0:01:47]}  Kf8 {[%clk 0:01:54]} 21. b4 {[%clk 0:01:39]}  b6 {[%clk 0:01:50]} 22. b5 {[%clk 0:01:38]}  Qc7 {[%clk 0:01:48]} 23. Bc6 {[%clk 0:01:30]}  Rc8 {[%clk 0:01:17]} 24. a4 {[%clk 0:01:29]}  Ke7 {[%clk 0:01:07]} 25. a5 {[%clk 0:01:11]}  Rd8 {[%clk 0:00:57]} 26. Qxd8+ {[%clk 0:01:00]}  Qxd8 {[%clk 0:00:58]} 27. Rxd8 {[%clk 0:01:00]}  Kxd8 {[%clk 0:00:59]} 28. a6 {[%clk 0:00:38]}  Bxc6 {[%clk 0:00:45]} 29. Nxc6+ {[%clk 0:00:36]}  Kc7 {[%clk 0:00:46]} 30. Nxa7 {[%clk 0:00:34]}  Ne4 {[%clk 0:00:46]} 31. Nc6 {[%clk 0:00:32]}  Nd2 {[%clk 0:00:46]} 32. Nd8 {[%clk 0:00:18]}  Kb8 {[%clk 0:00:42]} 33. Nxf7 {[%clk 0:00:16]}  Nxc4 {[%clk 0:00:41]} 34. Ng5 {[%clk 0:00:13]}  Na3 {[%clk 0:00:36]} 35. Nxe6 {[%clk 0:00:13]}  Nxb5 {[%clk 0:00:33]} 36. Nxg7 {[%clk 0:00:12]}  Nc3 {[%clk 0:00:25]} 37. Kf1 {[%clk 0:00:11]}  b5 {[%clk 0:00:26]} 38. Ke1 {[%clk 0:00:11]}  b4 {[%clk 0:00:27]} 39. Kd2 {[%clk 0:00:12]}  Ne4+ {[%clk 0:00:27]} 40. Kc2 {[%clk 0:00:10]}  c4 {[%clk 0:00:26]} 41. Ne6 {[%clk 0:00:08]}  Nxf2 {[%clk 0:00:24]} 42. Nd4 {[%clk 0:00:07]}  b3+ {[%clk 0:00:23]} 43. Kb2 {[%clk 0:00:06]}  Nd1+ {[%clk 0:00:24]} 44. Kc1 {[%clk 0:00:05]}  Nxe3 {[%clk 0:00:23]} 45. f5 {[%clk 0:00:05]}  Nd5 {[%clk 0:00:21]} 46. Nc6+ {[%clk 0:00:05]}  Kc7 {[%clk 0:00:20]} 47. Na5 {[%clk 0:00:06]}  Kb6 {[%clk 0:00:17]} 48. Nxc4+ {[%clk 0:00:06]}  Kxa6 {[%clk 0:00:18]} 49. Kb2 {[%clk 0:00:06]}  Kb5 {[%clk 0:00:14]} 50. Kxb3 {[%clk 0:00:06]}  Kc5 {[%clk 0:00:15]} 51. h3 {[%clk 0:00:06]}  Kd4 {[%clk 0:00:13]} 52. Nd6 {[%clk 0:00:03]}  Ke5 {[%clk 0:00:13]} 53. Nf7+ {[%clk 0:00:02]}  Kxf5 {[%clk 0:00:12]} 54. Kc4 {[%clk 0:00:03]}  Ne3+ {[%clk 0:00:11]} 55. Kd3 {[%clk 0:00:04]}  Ng2 {[%clk 0:00:12]} 56. Ke2 {[%clk 0:00:03]}  Nf4+ {[%clk 0:00:12]} 57. Kf3 {[%clk 0:00:03]}  Nxh3 {[%clk 0:00:13]} 58. Kg3 {[%clk 0:00:04]}  Nf4 {[%clk 0:00:13]} 59. Nd6+ {[%clk 0:00:04]}  Kg5 {[%clk 0:00:13]} 60. Ne4+ {[%clk 0:00:04]}  Kf5 {[%clk 0:00:14]} 61. Nd6+ {[%clk 0:00:04]}  Ke5 {[%clk 0:00:15]} 62. Nc4+ {[%clk 0:00:04]}  Ke4 {[%clk 0:00:15]} 63. Nd6+ {[%clk 0:00:05]}  Ke3 {[%clk 0:00:16]} 64. Nc4+ {[%clk 0:00:04]}  Ke4 {[%clk 0:00:16]} 65. Nd6+ {[%clk 0:00:04]}  Ke5 {[%clk 0:00:17]} 66. Nf7+ {[%clk 0:00:05]}  Kf5 {[%clk 0:00:17]} 67. Nd6+ {[%clk 0:00:05]} 1/2-1/2


[Site "https://www.chess.com"]

[Event "Titled Tuesday Blitz July 4 Late 2023"]
[White "Raja Rithvik R"]
[Black "Katz, Alexander"]
[WhiteFideId "35007394"]
[BlackFideId "2039796"]
[WhiteElo "2780"]
[BlackElo "2662"]
[Result "1-0"]
[Round "11"]
[TimeControl "180+2"]
[Date "2023.07.04"]
[WhiteClock "0:00:12"]
[BlackClock "0:00:19"]
[Board "21"]

1. Nf3 {[%clk 0:02:48]}  Nf6 {[%clk 0:02:59]} 2. c4 {[%clk 0:02:48]}  e6 {[%clk 0:03:00]} 3. g3 {[%clk 0:02:47]}  d5 {[%clk 0:03:00]} 4. Bg2 {[%clk 0:02:48]}  Be7 {[%clk 0:03:01]} 5. O-O {[%clk 0:02:47]}  dxc4 {[%clk 0:03:01]} 6. d4 {[%clk 0:02:48]}  cxd3 {[%clk 0:03:01]} 7. exd3 {[%clk 0:02:49]}  O-O {[%clk 0:03:01]} 8. d4 {[%clk 0:02:49]}  Nd5 {[%clk 0:02:57]} 9. Nc3 {[%clk 0:02:50]}  b6 {[%clk 0:02:54]} 10. Nxd5 {[%clk 0:02:44]}  exd5 {[%clk 0:02:55]} 11. Bf4 {[%clk 0:02:45]}  Bb7 {[%clk 0:02:53]} 12. Rc1 {[%clk 0:02:45]}  c5 {[%clk 0:02:54]} 13. Ne5 {[%clk 0:02:42]}  Nc6 {[%clk 0:02:50]} 14. dxc5 {[%clk 0:02:28]}  Nxe5 {[%clk 0:02:40]} 15. Bxe5 {[%clk 0:02:29]}  Bxc5 {[%clk 0:02:32]} 16. b4 {[%clk 0:02:08]}  Bd6 {[%clk 0:02:08]} 17. Bxd5 {[%clk 0:02:04]}  Bxe5 {[%clk 0:01:49]} 18. Bxb7 {[%clk 0:02:04]}  Rb8 {[%clk 0:01:49]} 19. Bd5 {[%clk 0:02:02]}  Qf6 {[%clk 0:01:47]} 20. Qb3 {[%clk 0:02:00]}  Rbd8 {[%clk 0:01:43]} 21. Rcd1 {[%clk 0:01:55]}  g6 {[%clk 0:01:37]} 22. Rd3 {[%clk 0:01:55]}  Rd7 {[%clk 0:01:14]} 23. Rfd1 {[%clk 0:01:47]}  Kg7 {[%clk 0:01:05]} 24. Kg2 {[%clk 0:01:43]}  Qd8 {[%clk 0:00:48]} 25. Bxf7 {[%clk 0:01:29]}  Rxd3 {[%clk 0:00:28]} 26. Rxd3 {[%clk 0:01:29]}  Qe7 {[%clk 0:00:17]} 27. Bd5 {[%clk 0:01:22]}  h5 {[%clk 0:00:17]} 28. Bc6 {[%clk 0:01:17]}  Qf6 {[%clk 0:00:17]} 29. Bf3 {[%clk 0:01:13]}  Kh6 {[%clk 0:00:17]} 30. a3 {[%clk 0:01:13]}  g5 {[%clk 0:00:15]} 31. Qc2 {[%clk 0:01:05]}  g4 {[%clk 0:00:16]} 32. Be4 {[%clk 0:00:59]}  Kg7 {[%clk 0:00:15]} 33. Rd5 {[%clk 0:00:52]}  Rf7 {[%clk 0:00:13]} 34. Qe2 {[%clk 0:00:51]}  Re7 {[%clk 0:00:07]} 35. Qd3 {[%clk 0:00:44]}  Rf7 {[%clk 0:00:07]} 36. f4 {[%clk 0:00:44]}  gxf3+ {[%clk 0:00:06]} 37. Bxf3 {[%clk 0:00:43]}  Re7 {[%clk 0:00:07]} 38. Bxh5 {[%clk 0:00:41]}  Bb8 {[%clk 0:00:04]} 39. Bf3 {[%clk 0:00:33]}  Qb2+ {[%clk 0:00:05]} 40. Kh3 {[%clk 0:00:33]}  Qf6 {[%clk 0:00:05]} 41. Rd7 {[%clk 0:00:26]}  Qh6+ {[%clk 0:00:05]} 42. Kg2 {[%clk 0:00:25]}  Qe6 {[%clk 0:00:05]} 43. Rxe7+ {[%clk 0:00:15]}  Qxe7 {[%clk 0:00:06]} 44. Qd4+ {[%clk 0:00:14]}  Be5 {[%clk 0:00:07]} 45. Qg4+ {[%clk 0:00:15]}  Kf8 {[%clk 0:00:07]} 46. Qf5+ {[%clk 0:00:15]}  Kg7 {[%clk 0:00:07]} 47. Be4 {[%clk 0:00:15]}  Qf6 {[%clk 0:00:07]} 48. Qxf6+ {[%clk 0:00:10]}  Kxf6 {[%clk 0:00:08]} 49. Kf3 {[%clk 0:00:10]}  b5 {[%clk 0:00:06]} 50. Bc6 {[%clk 0:00:09]}  Bb2 {[%clk 0:00:06]} 51. a4 {[%clk 0:00:06]}  bxa4 {[%clk 0:00:02]} 52. Bxa4 {[%clk 0:00:07]}  Bc3 {[%clk 0:00:03]} 53. b5 {[%clk 0:00:08]}  Bd4 {[%clk 0:00:03]} 54. h4 {[%clk 0:00:08]}  Bb6 {[%clk 0:00:04]} 55. Bc2 {[%clk 0:00:08]}  Ke5 {[%clk 0:00:04]} 56. g4 {[%clk 0:00:08]}  Kf6 {[%clk 0:00:05]} 57. g5+ {[%clk 0:00:08]}  Ke5 {[%clk 0:00:05]} 58. Kg4 {[%clk 0:00:09]}  Ke6 {[%clk 0:00:06]} 59. h5 {[%clk 0:00:10]}  Kf7 {[%clk 0:00:06]} 60. h6 {[%clk 0:00:10]}  Bd4 {[%clk 0:00:07]} 61. g6+ {[%clk 0:00:10]}  Kg8 {[%clk 0:00:08]} 62. Bb3+ {[%clk 0:00:10]}  Kf8 {[%clk 0:00:08]} 63. g7+ {[%clk 0:00:11]}  Bxg7 {[%clk 0:00:08]} 64. hxg7+ {[%clk 0:00:11]}  Kxg7 {[%clk 0:00:09]} 65. Kf5 {[%clk 0:00:12]}  Kf8 {[%clk 0:00:10]} 66. Ke6 {[%clk 0:00:13]}  Ke8 {[%clk 0:00:11]} 67. Kd6 {[%clk 0:00:14]}  Kd8 {[%clk 0:00:12]} 68. Kc6 {[%clk 0:00:14]}  Kc8 {[%clk 0:00:13]} 69. Bd5 {[%clk 0:00:10]}  Kb8 {[%clk 0:00:14]} 70. Kd7 {[%clk 0:00:08]}  a5 {[%clk 0:00:14]} 71. bxa6 {[%clk 0:00:08]}  Ka7 {[%clk 0:00:15]} 72. Bc4 {[%clk 0:00:08]}  Kb6 {[%clk 0:00:15]} 73. Kd6 {[%clk 0:00:09]}  Ka7 {[%clk 0:00:16]} 74. Kc6 {[%clk 0:00:09]}  Kb8 {[%clk 0:00:17]} 75. Kb6 {[%clk 0:00:10]}  Ka8 {[%clk 0:00:17]} 76. Bd5+ {[%clk 0:00:10]}  Kb8 {[%clk 0:00:18]} 77. a7+ {[%clk 0:00:11]}  Kc8 {[%clk 0:00:19]} 78. a8=Q+ {[%clk 0:00:12]}  Kd7 {[%clk 0:00:19]} 79. Qc6+ {[%clk 0:00:12]} 1-0


[Site "https://www.chess.com"]

[Event "Titled Tuesday Blitz July 4 Late 2023"]
[White "Tristan, Leonardo"]
[Black "Di Berardino, Diego Rafael"]
[WhiteFideId "113816"]
[BlackFideId "2105446"]
[WhiteElo "2768"]
[BlackElo "2630"]
[Result "1-0"]
[Round "11"]
[TimeControl "180+2"]
[Date "2023.07.04"]
[WhiteClock "0:00:07"]
[BlackClock "0:00:02"]
[Board "22"]

1. d4 {[%clk 0:03:00]}  Nf6 {[%clk 0:02:59]} 2. Nf3 {[%clk 0:03:01]}  c5 {[%clk 0:02:57]} 3. c3 {[%clk 0:03:01]}  Qc7 {[%clk 0:02:56]} 4. Bg5 {[%clk 0:03:00]}  Ne4 {[%clk 0:02:55]} 5. Bh4 {[%clk 0:03:00]}  cxd4 {[%clk 0:02:52]} 6. cxd4 {[%clk 0:03:00]}  d5 {[%clk 0:02:51]} 7. Nbd2 {[%clk 0:02:59]}  Nc6 {[%clk 0:02:39]} 8. e3 {[%clk 0:02:59]}  Bf5 {[%clk 0:02:32]} 9. Be2 {[%clk 0:02:59]}  e6 {[%clk 0:02:32]} 10. O-O {[%clk 0:02:59]}  Bd6 {[%clk 0:02:30]} 11. Rc1 {[%clk 0:02:39]}  O-O {[%clk 0:02:26]} 12. Nb3 {[%clk 0:02:39]}  Rac8 {[%clk 0:02:14]} 13. Nc5 {[%clk 0:02:38]}  b6 {[%clk 0:01:40]} 14. Nd3 {[%clk 0:02:34]}  Qb8 {[%clk 0:01:32]} 15. Qa4 {[%clk 0:02:32]}  Na5 {[%clk 0:01:28]} 16. Nde5 {[%clk 0:02:31]}  Rxc1 {[%clk 0:01:23]} 17. Rxc1 {[%clk 0:02:30]}  Rc8 {[%clk 0:01:23]} 18. Rxc8+ {[%clk 0:02:21]}  Qxc8 {[%clk 0:01:24]} 19. b4 {[%clk 0:02:22]}  Nc4 {[%clk 0:01:10]} 20. g4 {[%clk 0:01:44]}  Bg6 {[%clk 0:00:52]} 21. Qxa7 {[%clk 0:01:44]}  Nxe5 {[%clk 0:00:48]} 22. Nxe5 {[%clk 0:01:44]}  Bxe5 {[%clk 0:00:29]} 23. dxe5 {[%clk 0:01:44]}  h6 {[%clk 0:00:28]} 24. Qxb6 {[%clk 0:01:34]}  Qc2 {[%clk 0:00:24]} 25. Qa6 {[%clk 0:01:29]}  Nd2 {[%clk 0:00:16]} 26. f3 {[%clk 0:00:45]}  Nc4 {[%clk 0:00:13]} 27. Bf1 {[%clk 0:00:30]}  Nxe3 {[%clk 0:00:08]} 28. Qe2 {[%clk 0:00:30]}  Qc1 {[%clk 0:00:07]} 29. Qe1 {[%clk 0:00:24]}  Qa3 {[%clk 0:00:04]} 30. b5 {[%clk 0:00:22]}  Nc2 {[%clk 0:00:04]} 31. Qf2 {[%clk 0:00:17]}  Qxa2 {[%clk 0:00:04]} 32. f4 {[%clk 0:00:11]}  Qb1 {[%clk 0:00:04]} 33. f5 {[%clk 0:00:11]}  exf5 {[%clk 0:00:04]} 34. gxf5 {[%clk 0:00:11]}  Bh5 {[%clk 0:00:05]} 35. e6 {[%clk 0:00:11]}  fxe6 {[%clk 0:00:04]} 36. fxe6 {[%clk 0:00:12]}  Nb4 {[%clk 0:00:03]} 37. e7 {[%clk 0:00:11]}  Nd3 {[%clk 0:00:03]} 38. Qf8+ {[%clk 0:00:11]}  Kh7 {[%clk 0:00:03]} 39. e8=Q {[%clk 0:00:11]}  Bxe8 {[%clk 0:00:04]} 40. Qxe8 {[%clk 0:00:12]}  Qc2 {[%clk 0:00:03]} 41. Qe2 {[%clk 0:00:11]}  Qc5+ {[%clk 0:00:03]} 42. Bf2 {[%clk 0:00:11]}  Nxf2 {[%clk 0:00:03]} 43. Qxf2 {[%clk 0:00:12]}  d4 {[%clk 0:00:04]} 44. Bd3+ {[%clk 0:00:12]}  Kg8 {[%clk 0:00:04]} 45. Qf5 {[%clk 0:00:11]}  Qc1+ {[%clk 0:00:04]} 46. Kg2 {[%clk 0:00:12]}  Qd2+ {[%clk 0:00:04]} 47. Kf1 {[%clk 0:00:11]}  Qc1+ {[%clk 0:00:04]} 48. Ke2 {[%clk 0:00:10]}  Qe3+ {[%clk 0:00:05]} 49. Kd1 {[%clk 0:00:11]}  Qg1+ {[%clk 0:00:05]} 50. Kc2 {[%clk 0:00:11]}  Qxh2+ {[%clk 0:00:06]} 51. Kb3 {[%clk 0:00:12]}  Qd2 {[%clk 0:00:06]} 52. Kc4 {[%clk 0:00:10]}  Qc3+ {[%clk 0:00:06]} 53. Kd5 {[%clk 0:00:10]}  Qb4 {[%clk 0:00:04]} 54. Qh7+ {[%clk 0:00:07]}  Kf7 {[%clk 0:00:04]} 55. Qg6+ {[%clk 0:00:07]}  Kf8 {[%clk 0:00:05]} 56. b6 {[%clk 0:00:07]}  Qa5+ {[%clk 0:00:04]} 57. Kc6 {[%clk 0:00:07]}  Qc3+ {[%clk 0:00:05]} 58. Kd7 {[%clk 0:00:07]}  Qc5 {[%clk 0:00:04]} 59. Qd6+ {[%clk 0:00:07]}  Qxd6+ {[%clk 0:00:02]} 60. Kxd6 {[%clk 0:00:07]} 1-0


[Site "https://www.chess.com"]